bitfinex/quotes_SOLUSD_20250216
["timestamp","ask_amount","ask_price","bid_price","bid_amount"]
[1739715845128,1.0,190.16,190.1,9.4203]
[1739715846131,1.0,190.15,190.1,5.2603]
[1739715846321,1.0,190.14,190.1,4.14]
[1739715846731,1.0,190.14,190.12,0.03]
[1739715848241,1.0,190.15,190.12,0.03]
[1739715848536,1.0,190.14,190.12,0.03]
[1739715849237,1.0,190.14,190.13,83.32]
[1739715850727,1.0,190.14,190.12,0.03]
[1739715850930,1.0,190.13,190.12,0.03]
[1739715851508,2.0,190.14,190.12,0.03]
[1739715851714,1.0,190.13,190.12,0.03]
[1739715852034,1.0,190.16,190.12,0.03]
[1739715852242,1.0,190.17,190.12,0.03]
[1739715852432,1.0,190.16,190.12,0.03]
[1739715852940,1.0,190.17,190.12,0.03]
[1739715853317,1.0,190.16,190.13,83.32]
[1739715853516,1.0,190.16,190.13,88.5795]
[1739715854149,1.0,190.15,190.13,83.32]
[1739715855330,2.0,190.15,190.13,83.32]
[1739715856032,1.0,190.15,190.13,83.32]
[1739715858443,1.0,190.16,190.13,83.32]
[1739715858444,1.0,190.14,190.13,83.32]
[1739715859247,1.0,190.15,190.13,83.32]
[1739715859819,1.0,190.14,190.13,83.32]
[1739715860442,1.0,190.14,190.13,83.35]
[1739715860741,1.0,190.14,190.13,0.03]
[1739715861843,7.2592,190.14,190.13,0.03]
[1739715865247,10.58808491,190.14,190.13,0.03]
[1739715865446,11.90371909,190.14,190.13,0.03]
[1739715865634,14.96886991,190.14,190.13,0.03]
[1739715866836,6.64451909,190.14,190.13,0.03]
[1739715868138,3.31563418,190.14,190.13,0.03]
[1739715868942,2.0,190.14,190.13,0.03]
[1739715869647,1.0,190.15,190.13,0.03]
[1739715869961,1.0,190.14,190.13,0.03]
[1739715870656,3.3338653,190.16,190.13,0.03]
[1739715870832,4.3338653,190.16,190.13,0.03]
[1739715871033,1.0,190.16,190.13,0.03]
[1739715871238,1.0,190.18,190.13,0.03]
[1739715871436,1.0,190.16,190.13,0.03]
[1739715871642,1.0,190.18,190.13,5.2895]
[1739715872723,1.0,190.17,190.13,5.2895]
[1739715873135,1.0,190.18,190.13,5.2895]
[1739715873451,0.063,190.15,190.13,5.2895]
[1739715878356,0.063,190.15,190.14,13.41184853]
[1739715880736,0.063,190.15,190.14,18.67104853]
[1739715881659,1.0,190.2,190.14,31.81924853]
[1739715882045,0.063,190.21,190.14,31.81924853]
[1739715883839,1.0,190.08,190.06,4.9522387]
[1739715884039,1.0,190.03,189.95,5.2643]
[1739715884344,6.85269821,190.07,189.88,14.75615148]
[1739715884345,1.0,190.05,189.96,5.2641]
[1739715884541,1.0,190.05,189.96,1.6023]
[1739715884742,1.0,190.05,189.96,3.7318004]
[1739715884960,1.0,190.05,189.98,5.2636]
[1739715885466,1.0,190.04,189.96,8.9958004]
[1739715885640,1.0,190.05,189.98,5.2636]
[1739715885945,1.0,190.06,189.96,1.6023]
[1739715886148,7.044,190.07,189.99,5.2633]
[1739715886460,8.044,190.07,190.0,23.003]
[1739715886637,7.044,190.07,190.0,23.003]
[1739715887059,8.044,190.07,190.0,23.003]
[1739715887242,7.044,190.07,190.0,23.003]
[1739715887457,8.044,190.07,190.0,23.003]
[1739715887856,6.044,190.07,190.0,23.003]
[1739715888063,7.044,190.07,190.0,23.003]
[1739715888364,1.0,190.07,190.0,23.003]
[1739715888944,1.0,190.08,190.0,23.003]
[1739715889162,1.0,190.07,190.0,23.003]
[1739715889946,1.0,190.04,190.02,20.0]
[1739715890148,1.0,190.07,190.0,17.74]
[1739715890149,2.0,190.01,190.0,17.74]
[1739715890456,8.044,190.01,190.0,17.74]
[1739715890842,8.85269821,190.01,190.0,17.74]
[1739715891043,8.044,190.01,190.0,17.74]
[1739715893385,1.0,190.02,190.0,17.74]
[1739715893683,1.0,190.01,190.0,23.0031]
[1739715893978,1.0,190.01,190.0,17.74]
[1739715894264,0.80869821,190.09,190.03,20.0]
[1739715894565,1.0,190.14,190.05,13.41184853]
[1739715894749,1.0,190.11,190.06,6.07302878]
[1739715894956,1.0,190.1,190.06,89.43302878]
[1739715895561,1.0,190.1,190.07,5.2612]
[1739715895765,1.0,190.11,190.07,5.2612]
[1739715895949,2.0,190.11,190.07,5.2612]
[1739715896148,1.0,190.12,190.07,5.2612]
[1739715896364,2.0,190.12,190.07,5.2612]
[1739715896862,1.0,190.13,190.07,5.2612]
[1739715897066,1.063,190.15,190.07,18.4142]
[1739715897271,2.063,190.15,190.07,18.4142]
[1739715897445,1.063,190.15,190.07,18.4142]
[1739715897842,1.0,190.14,190.07,18.4142]
[1739715898059,1.0,190.13,190.07,18.4142]
[1739715898257,1.0,190.12,190.07,18.4142]
[1739715899054,1.0,190.14,190.07,18.4142]
[1739715899265,1.0,190.13,190.07,18.4142]
[1739715899463,1.0,190.14,190.07,18.4142]
[1739715899861,1.0,190.13,190.07,18.4142]
[1739715900267,0.063,190.15,190.1,20.0]
[1739715900472,1.063,190.15,190.1,20.0]
[1739715900788,2.063,190.15,190.1,20.0]
[1739715901457,2.0,190.13,190.07,13.153]
[1739715901659,1.0,190.12,190.08,83.34]
[1739715901855,1.0,190.11,190.08,83.34]
[1739715902053,1.0,190.13,190.08,83.34]
[1739715902369,2.0,190.13,190.08,83.34]
[1739715902669,1.0,190.13,190.08,83.34]
[1739715903279,1.0,190.13,190.09,18.4122]
[1739715904063,2.0,190.13,190.09,5.2606]
[1739715904275,1.0,190.13,190.09,5.2606]
[1739715904450,1.0,190.12,190.09,5.2606]
[1739715904852,2.0,190.12,190.09,5.2606]
[1739715905155,1.0,190.08,190.07,83.34]
[1739715905359,1.0,190.08,190.04,5.262]
[1739715907074,1.0,190.08,190.04,88.602]
[1739715907570,1.0,190.1,190.04,83.34]
[1739715907571,1.0,190.06,190.04,83.34]
[1739715907758,1.0,190.07,190.04,83.34]
[1739715907961,1.0,190.07,190.04,88.602]
[1739715908175,1.0,190.07,190.04,5.262]
[1739715908476,1.0,190.06,190.04,5.262]
[1739715909676,1.0,190.06,190.01,88.6028]
[1739715909975,1.0,190.06,190.01,18.42]
[1739715910179,1.0,190.06,190.02,4.34]
[1739715911253,1.0,190.07,190.02,4.34]
[1739715911454,1.0,190.06,190.02,4.34]
[1739715911651,1.0,190.01,190.0,17.74]
[1739715911854,8.0396,190.01,190.0,17.74]
[1739715912272,21.45144853,190.01,190.0,17.74]
[1739715912481,1.0,189.86,189.85,0.14125784]
[1739715913472,2.0,189.87,189.85,0.14125784]
[1739715913663,2.0,189.85,189.75,2.13299286]
[1739715913865,2.0,189.85,189.77,83.36]
[1739715914071,1.0,189.81,189.75,2.13299286]
[1739715914278,1.0,189.77,189.74,216.17554633]
[1739715914576,2.0,189.77,189.74,216.17554633]
[1739715916571,1.0,189.8,189.74,216.17554633]
[1739715916765,1.0,189.79,189.76,13.48545148]
[1739715916966,1.0,189.83,189.76,5.2696]
[1739715917187,1.0,189.8,189.76,5.2696]
[1739715917519,2.0,189.83,189.76,5.2696]
[1739715917793,1.0,189.83,189.76,5.2696]
[1739715918078,2.0,189.83,189.76,5.2696]
[1739715918290,1.0,189.84,189.79,20.0]
[1739715918465,2.0,189.86,189.79,20.0]
[1739715918664,1.0,189.84,189.79,20.0]
[1739715918859,1.0,189.85,189.79,20.0]
[1739715919281,2.0,189.89,189.83,20.0]
[1739715919486,2.0,189.9,189.83,20.0]
[1739715919685,1.0,189.88,189.83,20.0]
[1739715919865,1.0,189.88,189.85,5.2673]
[1739715920379,2.0,189.86,189.79,5.2689]
[1739715920572,2.0,189.84,189.79,5.2689]
[1739715920772,2.0,189.84,189.8,20.0]
[1739715920985,2.0,189.84,189.79,5.2689]
[1739715921398,1.0,189.85,189.79,5.2689]
[1739715921593,2.0,189.86,189.79,18.4413]
[1739715921768,1.0,189.86,189.79,18.4413]
[1739715921968,2.0,189.86,189.79,18.4413]
[1739715922168,1.0,189.84,189.79,18.4413]
[1739715923080,2.0,189.86,189.79,18.4413]
[1739715923278,1.0,189.86,189.82,20.0]
[1739715923465,1.0,189.85,189.82,20.0]
[1739715924084,1.0,189.85,189.83,5.2678]
[1739715924285,38.36603771,189.96,189.83,5.2678]
[1739715924286,6.622,190.03,189.83,72.116]
[1739715924470,6.622,190.03,189.84,19.31856695]
[1739715924673,13.41184853,190.02,189.84,19.31856695]
[1739715924881,13.41184853,189.99,189.84,5.90671842]
[1739715925084,14.41184853,189.99,189.83,71.116]
[1739715925281,13.41184853,189.97,189.83,18.4374]
[1739715925666,14.41184853,189.97,189.83,5.2678]
[1739715925870,1.0,189.97,189.83,5.2678]
[1739715926187,13.41184853,189.96,189.82,20.0]
[1739715926975,1.0,189.99,189.82,20.0]
[1739715927175,13.41184853,189.97,189.82,20.0]
[1739715927473,0.063,189.96,189.82,20.0]
[1739715928092,0.063,189.96,189.83,5.2678]
[1739715929892,14.47484853,189.96,189.82,20.0]
[1739715930270,15.47484853,189.96,189.81,5.2683]
[1739715930475,13.41184853,189.93,189.79,5.2688]
[1739715930776,13.41184853,189.91,189.78,88.7092]
[1739715930987,6.622,189.9,189.78,88.7092]
[1739715931593,13.41184853,189.89,189.78,83.44]
[1739715932103,13.41184853,189.87,189.78,83.44]
[1739715932271,13.41184853,189.87,189.74,205.2703]
[1739715932476,14.41184853,189.87,189.74,200.0]
[1739715932776,13.41184853,189.86,189.74,200.0]
[1739715933198,13.41184853,189.87,189.74,205.2702]
[1739715933593,6.2662,189.89,189.74,205.2702]
[1739715933771,1.0,189.87,189.74,205.2702]
[1739715933979,13.41184853,189.88,189.74,205.2702]
[1739715934879,19.67824853,189.88,189.74,205.2702]
[1739715935401,13.41184853,189.83,189.74,200.0]
[1739715935789,13.41184853,189.86,189.74,205.2703]
[1739715936593,1.0,189.87,189.74,200.0]
[1739715936800,17.89184853,189.86,189.74,205.2702]
[1739715937104,17.89184853,189.86,189.74,200.0]
[1739715937105,13.41184853,189.86,189.74,200.0]
[1739715938979,5.2673,189.85,189.74,200.0]
[1739715940304,7.2662,189.89,189.74,205.2703]
[1739715940484,6.2662,189.89,189.74,205.2703]
[1739715940880,13.41184853,189.88,189.74,205.2703]
[1739715941080,5.2667,189.87,189.74,205.2703]
[1739715941276,14.41184853,189.85,189.74,200.0]
[1739715941495,13.41184853,189.83,189.74,200.0]
[1739715941686,13.41184853,189.83,189.74,200.03]
[1739715941886,14.41184853,189.84,189.74,200.03]
[1739715942099,14.41184853,189.84,189.74,200.0]
[1739715942300,13.41184853,189.84,189.74,200.0]
[1739715943006,5.2678,189.83,189.74,200.0]
[1739715945021,1.0,189.89,189.74,200.0]
[1739715945204,5.44,189.88,189.74,205.2703]
[1739715945510,5.2662,189.89,189.74,205.2703]
[1739715946088,13.41184853,189.88,189.74,205.2703]
[1739715946302,13.41184853,189.89,189.74,205.2703]
[1739715946507,5.2666,189.88,189.74,205.2703]
[1739715948191,5.2666,189.88,189.74,218.4462]
[1739715949724,18.67774853,189.9,189.74,218.4462]
[1739715950390,5.2659,189.9,189.74,218.4462]
[1739715951413,13.41184853,189.9,189.74,218.4462]
[1739715952499,1.0,189.92,189.74,218.4462]
[1739715952705,18.4277,189.93,189.75,7.8091]
[1739715953006,50.78518886,189.92,189.75,7.8091]
[1739715953601,54.11291547,189.92,189.75,7.8091]
[1739715953798,5.2656,189.91,189.76,18.4443]
[1739715954007,1.31725089,189.91,189.76,24.35101842]
[1739715954407,1.31725089,189.91,189.79,20.0]
[1739715954894,1.31725089,189.91,189.8,20.0]
[1739715955904,37.37334033,189.92,189.81,5.2684]
[1739715956612,3.34108227,189.91,189.82,1.5678]
[1739715957530,3.34108227,189.91,189.83,5.2678]
[1739715957905,3.34108227,189.9,189.83,5.2678]
[1739715958698,3.34108227,189.9,189.83,18.4374]
[1739715959518,3.34108227,189.95,189.83,18.4374]
[1739715959921,3.34108227,189.95,189.84,6.2413]
[1739715960898,3.34108227,189.94,189.84,6.2413]
[1739715961800,3.34108227,189.94,189.85,5.2673]
[1739715962005,3.34108227,189.94,189.82,1.5678]
[1739715962006,13.41184853,189.93,189.82,1.5678]
[1739715962804,16.7529308,189.93,189.82,1.5678]
[1739715963223,1.31705868,189.92,189.82,1.5678]
[1739715963606,5.2659,189.9,189.82,1.5678]
[1739715964712,3.34108227,189.89,189.82,1.5678]
[1739715964915,3.34108227,189.89,189.82,6.8359]
[1739715966316,3.34108227,189.9,189.82,6.8359]
[1739715966734,37.37550578,189.91,189.9,2.78961873]
[1739715966932,42.64110578,189.91,189.9,2.78961873]
[1739715967131,57.05295431,189.91,189.9,2.78961873]
[1739715967712,56.05295431,189.91,189.9,2.78961873]
[1739715967916,57.05295431,189.91,189.9,2.78961873]
[1739715968230,58.05295431,189.91,189.9,2.78961873]
[1739715968433,20.67744853,189.91,189.9,2.78961873]
[1739715968621,21.99481668,189.91,189.9,2.78961873]
[1739715968819,21.99481668,189.91,189.9,1.873e-05]
[1739715969129,14.41184853,189.86,189.77,83.48]
[1739715969831,13.41184853,189.84,189.77,83.48]
[1739715970543,13.41184853,189.84,189.74,200.03]
[1739715971214,2.0,189.82,189.74,200.03]
[1739715971515,2.0,189.82,189.74,200.0]
[1739715971836,17.73184853,189.81,189.74,200.0]
[1739715972011,5.2687,189.8,189.74,200.0]
[1739715972518,13.41184853,189.79,189.74,200.0]
[1739715972918,14.72921668,189.79,189.74,200.0]
[1739715974017,13.41184853,189.77,189.74,200.0]
[1739715974435,5.2689,189.79,189.74,200.0]
[1739715974620,18.68054853,189.8,189.74,200.0]
[1739715976352,15.23323963,189.85,189.74,200.0]
[1739715976353,13.41184853,189.82,189.74,200.0]
[1739715978019,18.68014853,189.82,189.74,200.0]
[1739715978219,4.32,189.81,189.74,200.0]
[1739715979120,9.5885,189.81,189.74,200.0]
[1739715979341,5.2685,189.81,189.74,200.0]
[1739715980523,13.41184853,189.8,189.74,200.0]
[1739715980934,13.41184853,189.8,189.74,199.5]
[1739715981134,5.2689,189.79,189.74,199.5]
[1739715981526,8.45448031,189.79,189.74,199.5]
[1739715982932,5.2689,189.79,189.74,199.5]
[1739715983627,5.2681,189.82,189.74,199.5]
[1739715984245,13.41184853,189.81,189.74,199.53]
[1739715985324,5.2687,189.8,189.74,199.53]
[1739715985742,5.2687,189.8,189.74,199.5]
[1739715987043,5.2684,189.81,189.74,199.5]
[1739715987256,14.1691,189.84,189.74,199.5]
[1739715987257,13.1691,189.84,189.74,204.7703]
[1739715987426,5.267,189.86,189.75,7.591]
[1739715987944,3.1799864,189.83,189.75,7.591]
[1739715988958,3.1799864,189.83,189.76,5.2698]
[1739715989637,37.38557402,189.87,189.76,18.4443]
[1739715990754,5.2662,189.89,189.76,18.4443]
[1739715991137,5.3289,189.9,189.76,18.4443]
[1739715991862,5.3289,189.9,189.76,17.9443]
[1739715992663,3.18168649,189.89,189.76,17.9443]
[1739715992838,5.2664,189.88,189.76,17.9443]
[1739715994144,5.2664,189.88,189.8,2.641969]
[1739715994359,5.3291,189.9,189.8,7.910469]
[1739715995548,0.063,189.9,189.8,7.910469]
[1739715996550,8.4500682,189.89,189.8,7.910469]
[1739715997438,3.1838682,189.89,189.8,7.910469]
[1739715997638,8.4500682,189.89,189.8,7.910469]
[1739715998638,13.41184853,189.88,189.8,2.641969]
[1739715999331,13.41184853,189.88,189.76,5.2995]
[1739715999543,3.1838682,189.87,189.76,5.2995]
[1739715999724,13.41184853,189.86,189.76,0.03]
[1739716000248,14.41184853,189.86,189.76,0.03]
[1739716000554,1.0,189.85,189.76,0.03]
[1739716001048,18.67934853,189.84,189.75,1.5818]
[1739716001427,5.2675,189.84,189.75,6.8518]
[1739716001635,3.1838682,189.85,189.75,6.8518]
[1739716001845,1.31778003,189.83,189.75,6.8518]
[1739716002928,5.2673,189.85,189.75,6.8518]
[1739716003131,5.2667,189.87,189.75,6.8518]
[1739716003337,13.42301202,189.89,189.75,6.8518]
[1739716003538,13.42301202,189.89,189.76,6.0855]
[1739716003753,3.18935738,189.86,189.76,6.0855]
[1739716004431,3.18935738,189.86,189.77,5.2695]
[1739716004634,8.45645738,189.86,189.77,5.2695]
[1739716004965,5.2671,189.86,189.77,5.2695]
[1739716005130,3.18935738,189.87,189.77,5.2695]
[1739716005558,1.31746969,189.85,189.77,5.2695]
[1739716006651,3.18935738,189.84,189.77,5.2695]
[1739716008035,1.31746969,189.86,189.77,5.2695]
[1739716008428,0.063,189.89,189.77,5.2695]
[1739716009554,5.2667,189.87,189.77,5.2695]
[1739716009937,9.77883018,189.88,189.77,5.2695]
[1739716011073,0.55421208,189.87,189.77,5.2695]
[1739716011357,7.13831318,189.87,189.77,5.2695]
[1739716012337,1.87161318,189.87,189.77,5.2695]
[1739716012843,1.3174011,189.86,189.77,5.2695]
[1739716016948,5.2667,189.87,189.77,5.2695]
[1739716018049,1.3174011,189.86,189.77,5.2695]
[1739716020145,5.2669,189.87,189.77,5.2695]
[1739716020750,1.3174011,189.88,189.77,5.2695]
[1739716020952,6.5839011,189.88,189.77,5.2695]
[1739716021642,1.3174011,189.87,189.77,5.2695]
[1739716022054,1.3174011,189.87,189.77,18.4433]
[1739716022756,1.3174011,189.88,189.77,18.4433]
[1739716025948,1.3174011,189.88,189.77,18.4733]
[1739716026147,1.3804011,189.88,189.77,18.4733]
[1739716027853,0.063,189.88,189.77,18.4733]
[1739716028457,0.063,189.88,189.77,20.55276175]
[1739716029273,0.063,189.88,189.77,104.01276175]
[1739716036376,0.063,189.88,189.79,18.4413]
[1739716037272,0.063,189.88,189.79,13.1724]
[1739716043886,0.063,189.88,189.8,1.6425]
[1739716044989,0.063,189.88,189.81,18.4394]
[1739716047562,0.063,189.88,189.82,13.41184853]
[1739716048188,0.063,189.88,189.81,18.4394]
[1739716048576,0.063,189.88,189.81,101.8994]
[1739716050803,0.063,189.88,189.82,13.41184853]
[1739716052098,0.063,189.88,189.83,5.2678]
[1739716052393,0.063,189.88,189.84,13.41184853]
[1739716054182,0.063,189.88,189.85,5.2673]
[1739716067703,0.063,189.88,189.85,88.7073]
[1739716081306,0.063,189.88,189.85,88.7373]
[1739716081621,0.063,189.88,189.87,5.2667]
[1739716082600,0.063,189.88,189.85,96.88184853]
[1739716082799,0.063,189.88,189.85,83.47]
[1739716084708,0.063,189.88,189.85,88.7372]
[1739716085238,0.063,189.88,189.85,83.47]
[1739716086824,0.063,189.88,189.85,88.7372]
[1739716087030,0.063,189.88,189.85,83.47]
[1739716089408,20.063,189.88,189.85,0.03]
[1739716091325,20.0,189.86,189.85,0.03]
[1739716092232,20.063,189.88,189.85,0.03]
[1739716092454,20.0,189.86,189.85,0.03]
[1739716094830,5.45863082,189.95,189.94,23.49086664]
[1739716095055,3.082e-05,189.96,189.95,21.80157498]
[1739716095209,32.37444811,189.99,189.98,33.41184853]
[1739716095639,32.37444811,189.99,189.98,38.67554853]
[1739716095812,32.37444811,189.99,189.98,5.2637]
[1739716096012,32.37444811,189.99,189.95,22.45082645]
[1739716096013,32.37444811,189.99,189.95,1.9]
[1739716096226,32.37444811,189.99,189.96,5.264]
[1739716096427,32.37444811,189.99,189.97,13.41184853]
[1739716096635,3.733,190.07,189.96,5.264]
[1739716097015,3.733,190.07,189.97,0.78926835]
[1739716097212,3.733,190.07,189.97,14.20111688]
[1739716097447,3.733,190.07,190.0,14.94384853]
[1739716097663,3.733,190.07,190.02,5.2626]
[1739716098638,3.733,190.07,190.04,8.21585148]
[1739716100162,0.063,190.07,190.04,8.21585148]
[1739716100342,0.063,190.11,190.02,13.47835148]
[1739716100658,0.063,190.11,190.03,8.21585148]
[1739716102851,0.063,190.11,190.03,5.2622]
[1739716103841,0.063,190.11,190.03,13.47805148]
[1739716106148,13.47484853,190.14,190.07,16.17554633]
[1739716106348,5.3223,190.14,190.07,16.17554633]
[1739716106576,0.063,190.14,190.07,16.17554633]
[1739716107146,0.063,190.14,190.09,8.204807]
[1739716108563,0.063,190.14,190.09,13.465307]
[1739716109665,0.063,190.14,190.09,8.204807]
[1739716109868,0.063,190.14,190.1,8.204807]
[1739716111150,0.063,190.14,190.09,6.2606]
[1739716111481,0.063,190.14,190.09,1.0]
[1739716111849,0.063,190.14,190.09,6.2606]
[1739716112698,0.063,190.14,190.09,5.2606]
[1739716112855,0.063,190.14,190.09,6.2606]
[1739716113049,0.063,190.14,190.11,1.0]
[1739716114262,0.063,190.14,190.11,6.26]
[1739716114868,0.063,190.14,190.1,1.0]
[1739716115076,0.063,190.14,190.09,1.0]
[1739716115268,0.063,190.14,190.1,1.0]
[1739716117723,0.063,190.14,190.09,6.2605]
[1739716117985,0.063,190.14,190.06,84.36]
[1739716118178,0.063,190.14,190.07,1.0]
[1739716119193,0.063,190.14,190.07,6.2611]
[1739716124290,0.063,190.14,190.07,5.2611]
[1739716124675,0.063,190.14,190.07,6.2611]
[1739716124882,0.063,190.14,190.06,84.36]
[1739716125275,0.063,190.14,190.07,1.0]
[1739716126790,0.063,190.14,190.07,6.2609]
[1739716126999,0.063,190.14,190.06,6.2614]
[1739716127191,0.063,190.14,190.07,1.0]
[1739716128890,0.063,190.14,190.08,5.2609]
[1739716129093,0.063,190.14,190.1,1.0]
[1739716129496,0.063,190.14,190.11,1.0]
[1739716136105,0.063,190.14,190.12,6.2598]
[1739716137713,0.063,190.14,190.13,1.0]
[1739716138413,0.063,190.14,190.13,6.2595]
[1739716139403,0.063,190.14,190.13,21.27494853]
[1739716139803,0.063,190.14,190.13,7.8631]
[1739716140424,0.063,190.14,190.13,8.65172518]
[1739716142496,0.063,190.14,190.11,88.5998]
[1739716143218,0.063,190.14,190.12,1.0]
[1739716143422,0.063,190.14,190.12,1.78875396]
[1739716143919,0.063,190.14,190.12,1.0]
[1739716144497,0.063,190.14,190.13,5.2595]
[1739716144697,0.063,190.14,190.12,1.0]
[1739716145000,0.063,190.14,190.11,90.4999]
[1739716145196,0.063,190.14,190.12,1.0]
[1739716145820,0.063,190.14,190.11,83.34]
[1739716146224,0.063,190.14,190.08,91.6644]
[1739716146404,0.063,190.14,190.09,1.0]
[1739716146603,0.063,190.14,190.1,0.78887116]
[1739716147299,0.063,190.14,190.11,1.0]
[1739716147608,0.063,190.14,190.12,0.78870179]
[1739716147805,0.063,190.14,190.11,1.78869802]
[1739716148127,0.063,190.14,190.11,5.26]
[1739716149114,0.063,190.14,190.11,6.26]
[1739716150022,0.063,190.14,190.11,8.94874682]
[1739716151914,0.063,190.14,190.12,1.0]
[1739716152124,0.063,190.14,190.13,5.2595]
[1739716152312,0.063,190.14,190.12,1.78868309]
[1739716152616,0.063,190.14,190.12,7.04838309]
[1739716152821,0.063,190.14,190.12,6.2597]
[1739716153198,0.063,190.14,190.11,8.16]
[1739716154237,0.063,190.14,190.12,5.2598]
[1739716156131,0.063,190.14,190.11,7.94874413]
[1739716156442,0.063,190.14,190.11,8.94874413]
[1739716157898,0.063,190.14,190.11,7.94874413]
[1739716158413,0.063,190.14,190.11,8.94874413]
[1739716160001,0.063,190.14,190.12,6.2597]
[1739716162329,0.063,190.14,190.12,5.2597]
[1739716162825,0.063,190.14,190.12,6.2597]
[1739716163330,0.063,190.14,190.13,1.78871332]
[1739716163525,0.063,190.14,190.13,1.0]
[1739716163716,0.063,190.14,190.13,6.2595]
[1739716169250,0.063,190.14,190.12,2.9]
[1739716169426,0.063,190.14,190.09,0.788694]
[1739716169749,0.063,190.14,190.1,1.0]
[1739716171021,0.063,190.14,190.1,6.2603]
[1739716173847,0.063,190.14,190.11,0.78876333]
[1739716174152,0.063,190.14,190.11,1.78876333]
[1739716174948,0.063,190.14,190.12,5.2598]
[1739716179845,0.063,190.14,190.12,6.2598]
[1739716181347,0.063,190.14,190.12,6.3228]
[1739716185767,0.063,190.14,190.12,0.063]
[1739716185983,0.063,190.14,190.12,6.3227]
[1739716186673,0.063,190.14,190.13,1.0]
[1739716187351,0.063,190.14,190.13,1.78865477]
[1739716187951,0.063,190.14,190.13,1.0]
[1739716188752,0.063,190.14,190.13,6.2595]
[1739716188950,0.063,190.14,190.13,7.04818414]
[1739716189658,0.063,190.14,190.13,6.2595]
[1739716191852,0.063,190.14,190.13,7.04818999]
[1739716197679,0.063,190.14,190.13,8.94818999]
[1739716198683,0.063,190.14,190.13,22.36003852]
[1739716202183,0.063,190.14,190.13,1.9]
[1739716202976,0.063,190.14,190.13,7.1595]
[1739716203181,0.063,190.14,190.13,8.94818233]
[1739716203575,0.063,190.14,190.13,104.26003086]
[1739716203766,0.063,190.14,190.13,186.79134853]
[1739716206681,0.063,190.14,190.13,192.91884853]
[1739716206879,0.063,190.15,190.14,14.41184853]
[1739716207077,0.063,190.15,190.14,104.25951585]
[1739716207283,0.063,190.15,190.14,103.47104853]
[1739716216096,0.0001,190.15,190.14,103.47104853]
[1739716220390,0.0001,190.15,190.14,81.9]
[1739716222697,0.0001,190.15,190.13,83.383]
[1739716228808,8.15793122,190.15,190.13,0.063]
[1739716228987,13.41693122,190.15,190.06,1.0]
[1739716229301,8.15783122,190.14,190.06,1.0]
[1739716229503,8.15783122,190.14,190.05,6.2617]
[1739716229875,8.15783122,190.14,190.06,1.0]
[1739716230277,8.15783122,190.14,190.05,6.2617]
[1739716230517,8.15783122,190.14,190.05,1.0]
[1739716230715,8.15783122,190.14,190.04,2.9]
[1739716230886,8.15783122,190.14,190.05,1.0]
[1739716231299,5.2595,190.13,190.05,1.0]